Workbook

Sheet Menu
B1: Nose to Tail
A3: Datum | B3: 2023-04-13
A5: Apéro
A7: Vorspeise | B7: Kalbsmilken gebraten auf Salat
A9: Suppe | B9: Schnecken- oder Crevetten-Suppe flambiert
A11: Hauptgang | B11: Saucisse aux Choux, Saucisson Vaudoise, Butefa
A13: Beilage | B13: Papet vaudois
A15: Dessert | B15: Salée au sucre (Waadtländer Rahmkuchen)
A17: Diverses
A19: Menu von Tisch | B19: D / Dazu passt ein Waadtländer Weisswein
A21: Personenzahl | B21: 4

Sheet Vorspeise
E1: Chochete vom | F1: =SUM(Menu!B3) -> 2023-04-13 | I1: Original Rezept
A2: =Menu!B7 -> Kalbsmilken gebraten auf Salat | E2: Rezept für | F2: =SUM(Menu!B21) -> 4 | I2: 6 | J2: Personen
A3: Menge | B3: Einheit | C3: Artikel (Gewicht alles ca. Angaben) | D3: Bemerkungen | E3: Einkaufspreis | F3: Betrag | I3: Originalrezept | J3: pro Person
A4: =ROUND(SUM(J4*$F$2),2) -> 0.4 | B4: Kg | C4: Milken vom Schweizer Kalb | D4: Ernesto | F4: =SUM(E4*A4) -> 0 | I4: 0.6 | J4: =I4/$I$2 -> 0.1
A5: 0.67 | B5: El | C5: Weissweinessig | F5: 0 | I5: 1 | J5: 0.1666666667
A6: 0.03 | B6: Kg | C6: Mehl | F6: 0 | I6: 0.05 | J6: 0.008333333333
A7: 0 | C7: Salz | J7: 0
A8: 0.04 | B8: Kg | C8: Butter | F8: 0 | I8: 0.06 | J8: 0.01
A9: 1.33 | B9: Zweige | C9: Estragon | F9: 0 | I9: 2 | J9: 0.3333333333
A10: Für den Salat | J10: 0
A11: 0.03 | B11: Kg | C11: Schalotten, geschält, fein gehackt | F11: 0 | I11: 0.04 | J11: 0.006666666667
A12: 1.33 | B12: EL | C12: Holundersirup | F12: 0 | I12: 2 | J12: 0.3333333333
A13: 0.08 | B13: Kg | C13: Himbeeren | F13: 0 | I13: 0.125 | J13: 0.02083333333
A14: =ROUND(SUM(J14*$F$2),2) -> 2.67 | B14: EL | C14: Himbeeressig | F14: 0 | I14: 4 | J14: 0.6666666667
A15: 4 | B15: EL | C15: Baumnuss- oder Olivenöl | F15: 0 | I15: 6 | J15: 1
A16: 0 | C16: Salz und Pfeffer | F16: 0 | J16: 0
A17: 0.13 | B17: Kg | C17: Blattsalat | F17: =SUM(E17*A17) -> 0 | I17: 0.2 | J17: 0.03333333333
A18: 0.03 | B18: Kg | C18: Haselnüsse | F18: =SUM(E18*A18) -> 0 | I18: 0.05 | J18: 0.008333333333
A19: 0 | F19: =SUM(E19*A19) -> 0 | J19: =I19/$I$2 -> 0
A20: 0 | F20: =SUM(E20*A20) -> 0 | J20: =I20/$I$2 -> 0
A21: Zubereitung | C21: Kalbsmilken richtig braten - Schweizer Fleisch
A22: 1 | B22: Topf mit ca. 1 Liter Wasser zum Kochen bringen. Essig, Salz und die Milken dazugeben, den Topf vom Herd nehmen und die Milken ca. 5 Minuten ziehen lassen
A24: 2 | B24: Milken aus dem heissen Wasser nehmen, mit kaltem Wasser abspülen und auf Küchenpapier abtropfen. Milken anschliessend in die einzelnen Segmente zerteilen, dabei Häutchen und Äderchen entfernen, und beiseitestellen.
A26: 3 Für den Salat | B26: Herd auf mittlere Stufe stellen. Schalotten, Holundersirup und Himbeeren während 2 Minuten glasieren. Danach Himbeeressig, Öl, Salz und Pfeffer dazugeben, gut rühren und abkühlen lassen.
A27: 4 | B27: Mehl und etwas Salz in einem Teller mischen. Butter in Pfanne auf mittlerer Stufe erhitzen. Bis die Butter heiss ist, Milken in der Mehlmischung wenden, leicht abklopfen und direkt in die Pfanne geben.
A29: 5 | B29: Estragon dazugeben und das Ganze während ca. 4 Minuten anbraten, bis die Milken rundum goldbraun sind.
A30: 6 | B30: Milken auf Salat geben, mit etwas Himbeeressig beträufeln und geröstete Haselnüsse dazugeben. Dazu passt Brot.

Sheet Suppe
E1: Chochete vom | F1: =SUM(Menu!B3) -> 2023-04-13 | I1: Original Rezept
A2: =Menu!B9 -> Schnecken- oder Crevetten-Suppe flambiert | E2: Rezept für | F2: =SUM(Vorspeise!F2) -> 4 | I2: 4 | J2: Personen
A3: Menge | B3: Einheit | C3: Artikel (Gewicht alles ca. Angaben) | D3: Bemerkungen | E3: Einkaufspreis | F3: Betrag | I3: Originalrezept | J3: pro Person
A4: =ROUND(SUM(J4*$F$2),2) -> 0.03 | B4: Kg | C4: Butter | D4: zusammen | F4: =SUM(E4*A4) -> 0 | I4: 0.03 | J4: =I4/$I$2 -> 0.0075
A5: 1 | B5: EL | C5: Zwiebel fein gehackt | D5: dünsten | F5: =SUM(E5*A5) -> 0 | I5: 1 | J5: 0.25
A6: 1 | B6: St | C6: Knoblauch fein gehackt | F6: =SUM(E6*A6) -> 0 | I6: 1 | J6: 0.25
A7: =ROUND(SUM(J7*$F$2),2) -> 6 | B7: St | C7: Schnecken vierteln oder Crevetten halbiert | F7: =SUM(E7*A7) -> 0 | I7: 6 | J7: 1.5
A8: 1 | B8: TL | C8: Currypulver | D8: dazugeben | I8: 1 | J8: 0.25
A9: 0.1 | B9: LT | C9: Sherry dazugiessen und flambieren | I9: 0.1 | J9: 0.025
A10: 0.4 | B10: Lt | C10: Bouillon | D10: dazu giessen und kurz aufkochen | I10: 0.4 | J10: 0.1
A11: 0 | C11: mit Cayenne und Pfeffer | D11: abschmecken | J11: 0
A12: 0 | C12: Gewürze nach belieben und einige Tropfen Zitronensaft | F12: =SUM(E12*A9) -> 0 | J12: 0
A13: 0.06 | B13: Lt | C13: Rahm flüssig | D13: untermischen, nicht mehr kochen | F13: =SUM(E13*A14) -> 0 | I13: 0.06 | J13: 0.015
A14: 0.06 | B14: Lt | C14: Rahm geschlagen | D14: als Garniture | F14: =SUM(E14*A15) -> 0 | I14: 0.06 | J14: 0.015
A15: 2 | B15: St | C15: Salatblätter in Streifen zum Garnieren | F15: =SUM(E15*A12) -> 0 | I15: 2 | J15: 0.5
F16: =SUM(E16*A13) -> 0 | J16: 0
F17: =SUM(E17*A14) -> 0 | J17: =I17/$I$2 -> 0
F18: =SUM(E18*A15) -> 0 | J18: =I18/$I$2 -> 0
F19: =SUM(E19*A19) -> 0 | J19: =I19/$I$2 -> 0
A20: =ROUND(SUM(J20*$F$2),2) -> 0 | F20: =SUM(E20*A20) -> 0 | J20: =I20/$I$2 -> 0
A21: Zubereitung
A22: Die Butter in einer Pfanne erhitzen. Zwiebel und Knoblauch dünsten.
A23: Die Schnecken oder Crevetten beigeben, kurz dünsten und mit Sherry übergiessen und flambieren.
A24: Die Bouillon beigeben, das Ganze aufkochen, würzen und von der Herdplatte nehmen.
A25: Rahm flüssig beigeben, nachwürzen und nochmals bis zum Siedepunkt bringen, nicht mehr kochen.
A26: In Suppenschalen servieren. Zuletzt einen Löffel geschlagenen Rahm dazugeben und mit Salatstreifen garnieren

Sheet Hauptgang
E1: Chochete vom | F1: =SUM(Menu!B3) -> 2023-04-13 | I1: Original Rezept
A2: =Menu!B11 -> Saucisse aux Choux, Saucisson Vaudoise, Butefa | E2: Rezept für | F2: =SUM(Suppe!F2) -> 4 | I2: 4 | J2: Personen
A3: Menge | B3: Einheit | C3: Artikel (Gewicht alles ca. Angaben) | D3: Bemerkungen | E3: Einkaufspreis | F3: Betrag | I3: Originalrezept | J3: pro Person
A4: =ROUND(SUM(J4*$F$2),2) -> 0.25 | B4: Saucisse aux choux | D4: 1 Stück ca. 450 - 500 Gramm | F4: =SUM(E4*A4) -> 0 | I4: 0.25 | J4: =I4/$I$2 -> 0.0625
A5: =ROUND(SUM(J5*$F$2),2) -> 0 | B5: Die Kabiswurst vor dem Verzehr rund 45 Minuten lang ziehen lassen. Sie wird entweder ganz oder in zwei Hälften geschnitten, normalerweise mit dem berühmten «Papet vaudois» (Lauch-Kartoffel-Eintopf) serviert. Man schneidet sie auf und isst nur den Inhalt des Naturdarms. | F5: =SUM(E5*A5) -> 0 | J5: 0
A6: =ROUND(SUM(J6*$F$2),2) -> 0 | F6: =SUM(E6*A6) -> 0 | J6: 0
A7: 0 | F7: 0 | J7: 0
A8: 0 | F8: 0 | J8: 0
A9: 0.8 | B9: Saucisson vaudois | D9: 1 Stück ca. 250 - 300 Gramm | F9: 0 | I9: 0.8 | J9: 0.2
A10: =ROUND(SUM(J10*$F$2),2) -> 0 | B10: Die Saucisson vor dem Verzehr rund 45 Minuten lang ziehen lassen. Dann in Scheiben schneiden und mit dem Lauchgemüse zusammen geniessen | F10: 0 | J10: 0
A11: =ROUND(SUM(J11*$F$2),2) -> 0 | F11: 0 | J11: 0
A12: 0 | F12: 0 | J12: 0
A13: =ROUND(SUM(J13*$F$2),2) -> 0.5 | B13: Boutefa | D13: 1 Stück ca. 1000 -1300 Gramm | F13: 0 | I13: 0.5 | J13: 0.125
A14: 0 | B14: Kochtipp: Im Wasser bei 75 °C ca. 70 - 80 Minuten erwärmen. Das Wasser darf nicht kochen. | F14: 0 | J14: 0
A15: =ROUND(SUM(J15*$F$2),2) -> 0 | F15: 0 | J15: 0
A16: =ROUND(SUM(J16*$F$2),2) -> 0 | F16: =SUM(L23*A16) -> 0 | J16: =I16/$I$2 -> 0
A17: 0 | F17: =SUM(L26*A17) -> 0 | J17: =I17/$I$2 -> 0
A18: 0 | F18: =SUM(L27*A18) -> 0 | J18: =I18/$I$2 -> 0
A19: 0 | F19: =SUM(E19*A19) -> 0 | J19: =I19/$I$2 -> 0
A20: 0 | F20: =SUM(E20*A20) -> 0 | J20: =I20/$I$2 -> 0
A21: Zubereitung | J21: =SUM(J4:J20) -> 0.3875
A22: Lassen Sie den Saucisson Vaudoise oder die Waadtländer Kabiswurst vor dem Aufschneiden auf einem Schneidebrett einige Minuten ruhen.
A24: Stechen Sie die Haut (am besten in der Pfanne mit dem Lauchgemüse, dass der Saft im Gemüse bleibt) vor dem Abschneiden der ersten Tranche mit einer Messerspitze von der Seite des Brettes an, um den Druck abzulassen.
A26: Saucisson Vaudoise, welche kalt gegessen werden sollen, sind zum Abkühlen am besten im Kochwasser zu belassen.

Sheet Beilage1
E1: Chochete vom | F1: =SUM(Menu!B3) -> 2023-04-13 | I1: Original Rezept
A2: =Menu!B12 -> 0 | E2: Rezept für | F2: =SUM(Hauptgang!F2) -> 4 | J2: Personen
A3: Menge | B3: Einheit | C3: Artikel (Gewicht alles ca. Angaben) | D3: Bemerkungen | E3: Einkaufspreis | F3: Betrag | I3: Originalrezept | J3: pro Person
A4: =ROUND(SUM(J4*$F$2),2) ->  | F4: =SUM(E4*A4) ->  | J4: =I4/$I$2 -> 
F5: =SUM(E5*A5) -> 
F6: =SUM(E6*A6) -> 
F15: =SUM(E15*A15) -> 
F16: =SUM(E16*A16) -> 
F17: =SUM(E17*A17) -> 
F18: =SUM(E18*A18) -> 
F19: =SUM(E19*A19) -> 
A21: Zubereitung

Sheet Beilage2
E1: Chochete vom | F1: =SUM(Menu!B3) -> 2023-04-13 | I1: Original Rezept
A2: =Menu!B13 -> Papet vaudois | E2: Rezept für | F2: =SUM(Beilage1!F2) -> 4 | I2: 4 | J2: Personen | L2: Menu Angaben wie folgt machen:
A3: Menge | B3: Einheit | C3: Artikel (Gewicht alles ca. Angaben) | D3: Bemerkungen | E3: Einkaufspreis | F3: Betrag | I3: Originalrezept | J3: pro Person
A4: =ROUND(SUM(J4*$F$2),2) -> 0.8 | B4: Stk | C4: Zwiebel | F4: =SUM(E4*A4) -> 0 | I4: 0.8 | J4: =I4/$I$2 -> 0.2 | L4: Kg | M4: 0.25
A5: 0.8 | B5: EL | C5: Butter | F5: 0 | I5: 0.8 | J5: 0.2 | L5: Lt | M5: 1.25
A6: 0.8 | B6: Stk | C6: Knoblauch | F6: 0 | I6: 0.8 | J6: 0.2 | L6: EL | M6: Esslöffel
A7: 0.8 | B7: Kg | C7: Lauch weiss | F7: 0 | I7: 0.8 | J7: 0.2 | L7: TL | M7: Kaffeelöffel
A8: 0 | C8: Salz, Muskat und Pfeffer | F8: 0 | J8: 0 | L8: Bund | M8: 1
A9: 0.1 | B9: Lt | C9: Chasselas vaudois (Weisswein) | F9: 0 | I9: 0.1 | J9: 0.025 | L9: Stk | M9: Stück
A10: 0.2 | B10: Lt | C10: Bouillon | F10: 0 | I10: 0.2 | J10: 0.05 | L10: Pä | M10: Päckli
A11: 0 | C11: Lorbeerblatt | J11: 0 | L11: alles weitere ausschreiben
A12: 0.4 | B12: Kg | C12: Kartoffeln festkochende (Amandine) | F12: =SUM(E12*A12) -> 0 | I12: 0.4 | J12: 0.1
A13: 0 | C13: Salz | J13: 0
A14: 0 | C14: Pfeffer | J14: 0
A15: 0 | C15: Muskatnuss | F15: =SUM(E15*A15) -> 0 | J15: 0
A16: 0 | C16: Rahm nach belieben | F16: =SUM(E16*A16) -> 0 | J16: 0
A17: Zum zusätzlichen abbinden: | J17: 0
A18: 1 | B18: Teil | C18: Butter flüssig | D18: mischen und dann soviel wie nötig in die Sauce geben und einige Minuten kochen. Kann gut im Kühlschrank länger gelagert werden. | J18: 0
A19: 1 | B19: Teil | C19: Mehl | J19: 0
A20: 0 | F20: =SUM(E20*A20) -> 0 | J20: 0
A21: Zubereitung
A22: Zwiebel und Knoblauch fein hacken. Lauch der Länge nach halbieren oder vierteln, waschen und in ca. 1 cm breite Streifen schneiden.
A23: Die Zwiebeln in Butter andünsten, den Knoblauch und den Lauch zugeben und etwa 10 Minuten mitdünsten. Mit Salz, Muskat und Pfeffer würzen, mit dem Weisswein ablöschen und fast vollständig einkochen. Geflügelbrühe und das Lorbeerblatt zugeben und ca. 40 Minuten bei kleinem Feuer leise köcheln. Zur Bindung kann noch eine halbe, kleine Kartoffel dazu gerieben werden oder mit einem Roux (Mehlschwitze) binden. Falls der Lauchbrei einkocht, 2-3 Esslöffel Wasser angiessen.
A26: Kartoffeln schälen und in 1-2 cm grosse Würfel schneiden und kochen und am Schluss mit dem Lauchgemüse mischen.

Sheet Dessert
E1: Chochete vom | F1: =SUM(Menu!B3) -> 2023-04-13 | I1: Original Rezept
A2: =Menu!B15 -> Salée au sucre (Waadtländer Rahmkuchen) | E2: Rezept für | F2: 1 | I2: 1 | J2: Personen
A3: Menge | B3: Einheit | C3: Artikel (Gewicht alles ca. Angaben) | D3: Bemerkungen | E3: Einkaufspreis | F3: Betrag | I3: Originalrezept | J3: pro Person
A4: =ROUND(SUM(J4*$F$2),2) -> 0 | C4: Kuchenboden | D4: Zubereiten 30 Minuten | F4: =SUM(E4*A4) -> 0 | J4: =I4/$I$2 -> 0
A5: =ROUND(SUM(J5*$F$2),2) -> 0.02 | B5: Kg | C5: Hefe, zerkrümelt | D5: Kochen / Backen 30 Minuten | F5: 0 | I5: 0.015 | J5: 0.015
A6: 1 | B6: TL | C6: Zucker | D6: Aufgehen lassen 1 Stunde | F6: 0 | I6: 1 | J6: 1
A7: 0.15 | B7: Lt | C7: Milch | D7: Auf dem Tisch in 2 Stunden | F7: 0 | I7: 0.15 | J7: 0.15
A8: 0.025 | B8: Kg | C8: Butter weich | F8: 0 | I8: 0.025 | J8: 0.025
A9: 0.25 | B9: Kg | C9: Mehl | F9: 0 | I9: 0.25 | J9: 0.25
A10: 0.75 | B10: TL | C10: Salz | F10: 0 | I10: 0.75 | J10: 0.75
A11: 1 | B11: Stk | C11: Eigelb zum bestreichen, nach Belieben | F11: 0 | I11: 1 | J11: 1
A12: 0 | F12: 0 | J12: 0
A13: 0 | C13: Belag | D13: Kuchenblech 28 cm Ø / für 8 Stück | J13: 0
A14: 1 | B14: EL | C14: Mehl | I14: 1 | J14: 1
A15: 4 | B15: EL | C15: Zucker | F15: =SUM(E15*A15) -> 0 | I15: 4 | J15: 4
A16: 0.25 | B16: Lt | C16: Rahm | F16: 0 | I16: 0.25 | J16: 0.25
A17: 1 | B17: TL | C17: Maisstärke | F17: 0 | I17: 1 | J17: 1
A18: 0 | F18: 0 | J18: 0
F19: 0 | J19: 0
A20: 0 | F20: 0 | J20: 0
A21: Zubereitung | B21: 4 | C21: Salée au sucre (Waadtländer Rahmkuchen) - Rezept | Swissmilk
A22: 1 | B22: Kuchenboden: Hefe und Zucker mischen, Milch beifügen. Butter, Mehl und Salz daruntermischen.
A23: 2 | B23: Teig kneten, bis er weich und glatt ist. Zugedeckt bei Raumtemperatur mindestens 1 Stunde aufs Doppelte aufgehen lassen.
A24: 3 | B24: Ofen auf 180°C Ober-/Unterhitze vorheizen (Heissluft/Umluft ca. 160°C).
A25: 4 | B25: Teig auf wenig Mehl zu einer Rondelle auswallen, sodass ca. 1 cm Teig rundum über den Blechrand lappt. Auf das backpapierbelegte Blech legen, überlappenden Teig nach innen umlegen, sodass ein blechhoher doppelter Rand entsteht. Rand nach Belieben mit Eigelb bestreichen.
A27: 5 | B27: Belag: Mehl mit 2 EL Zucker mischen, Kuchenboden damit bestreuen (den Rand nicht).
A28: 6 | B28: 2 dl Rahm mit restlichem Zucker und der Maisstärke mischen, über den Kuchenboden giessen. In der Mitte des vorgeheizten Ofens 20 Minuten backen. Kuchen herausnehmen, die restlichen 0.5 dl Rahm darübergiessen. 10-15 Minuten fertig backen. Die Füllung kann danach noch etwas flüssig sein, sie wird beim Auskühlen fest.
A30: Tips | B30: Das Backpapier kannst du ganz einfach in einer Schüssel mit Wasser zerknüllen. So wird es besser formbar und du kannst es viel einfacher ins Blech legen.
A31: Damit der Kuchen schön saftig bleibt, lagere ihn in Folie verpackt bei Raumtemperatur. Oder bereite ihn am Vortag vor und friere ihn ein. Zwei Stunden vor dem Servieren aus dem Tiefkühler nehmen und bei Raumtemperatur auftauen lassen.

Sheet Einkaufsliste
A1: Hobby-Küche Zug | C1: Einkaufsliste | D1: =Dessert!F1 -> 2023-04-13 | E1: ok
A2: Menge | B2: Einheit | C2: Artikel
A3: =Vorspeise!A2 -> Kalbsmilken gebraten auf Salat | D3: Bemerkungen
A4: =SUM(Vorspeise!A4) -> 0.4 | B4: =Vorspeise!B4 -> Kg | C4: =Vorspeise!C4 -> Milken vom Schweizer Kalb | D4: =Vorspeise!D4 -> Ernesto
A5: =SUM(Vorspeise!A6) -> 0.03 | B5: =Vorspeise!B6 -> Kg | C5: =Vorspeise!C6 -> Mehl | D5: =Vorspeise!D6 -> 0
A6: =SUM(Vorspeise!A7) -> 0 | B6: =Vorspeise!B7 -> 0 | C6: =Vorspeise!C7 -> Salz
A7: =SUM(Vorspeise!A8) -> 0.04 | B7: =Vorspeise!B8 -> Kg | C7: =Vorspeise!C8 -> Butter | D7: =Vorspeise!D8 -> 0
A8: =SUM(Vorspeise!A9) -> 1.33 | B8: =Vorspeise!B9 -> Zweige | C8: =Vorspeise!C9 -> Estragon | D8: =Vorspeise!D9 -> 0
A9: =SUM(Vorspeise!A10) -> 0 | B9: =Vorspeise!B10 -> 0 | C9: =Vorspeise!C10 -> 0 | D9: =Vorspeise!D10 -> 0
A10: =SUM(Vorspeise!A11) -> 0.03 | B10: =Vorspeise!B11 -> Kg | C10: =Vorspeise!C11 -> Schalotten, geschält, fein gehackt | D10: =Vorspeise!D11 -> 0
A11: =SUM(Vorspeise!A12) -> 1.33 | B11: =Vorspeise!B12 -> EL | C11: =Vorspeise!C12 -> Holundersirup | D11: =Vorspeise!D12 -> 0
A12: =SUM(Vorspeise!A13) -> 0.08 | B12: =Vorspeise!B13 -> Kg | C12: =Vorspeise!C13 -> Himbeeren | D12: =Vorspeise!D13 -> 0
A13: =SUM(Vorspeise!A14) -> 2.67 | B13: =Vorspeise!B14 -> EL | C13: =Vorspeise!C14 -> Himbeeressig | D13: =Vorspeise!D14 -> 0
A14: =SUM(Vorspeise!A15) -> 4 | B14: =Vorspeise!B15 -> EL | C14: =Vorspeise!C15 -> Baumnuss- oder Olivenöl | D14: =Vorspeise!D15 -> 0
A15: =SUM(Vorspeise!A16) -> 0 | B15: =Vorspeise!B16 -> 0 | C15: =Vorspeise!C16 -> Salz und Pfeffer | D15: =Vorspeise!D16 -> 0
A16: =SUM(Vorspeise!A17) -> 0.13 | B16: =Vorspeise!B17 -> Kg | C16: =Vorspeise!C17 -> Blattsalat | D16: =Vorspeise!D17 -> 0
A17: =SUM(Vorspeise!A18) -> 0.03 | B17: =Vorspeise!B18 -> Kg | C17: =Vorspeise!C18 -> Haselnüsse | D17: =Vorspeise!D18 -> 0
A18: =SUM(Vorspeise!A19) -> 0 | B18: =Vorspeise!B19 -> 0 | C18: =Vorspeise!C19 -> 0 | D18: =Vorspeise!D17 -> 0
A19: =SUM(Vorspeise!A20) -> 0 | B19: =Vorspeise!B20 -> 0 | C19: =Vorspeise!C20 -> 0 | D19: =Vorspeise!D18 -> 0
A20: =Suppe!A2 -> Schnecken- oder Crevetten-Suppe flambiert | D20: Bemerkungen
A21: =SUM(Suppe!A4) -> 0.03 | B21: =Suppe!B4 -> Kg | C21: =Suppe!C4 -> Butter | D21: =Suppe!D4 -> zusammen
A22: =SUM(Suppe!A5) -> 1 | B22: =Suppe!B5 -> EL | C22: =Suppe!C5 -> Zwiebel fein gehackt | D22: =Suppe!D5 -> dünsten
A23: =SUM(Suppe!A6) -> 1 | B23: =Suppe!B6 -> St | C23: =Suppe!C6 -> Knoblauch fein gehackt | D23: =Suppe!D6 -> 0
A24: =SUM(Suppe!A7) -> 6 | B24: =Suppe!B7 -> St | C24: =Suppe!C7 -> Schnecken vierteln oder Crevetten halbiert | D24: =Suppe!D7 -> 0
A25: =SUM(Suppe!A8) -> 1 | B25: =Suppe!B8 -> TL | C25: =Suppe!C8 -> Currypulver | D25: =Suppe!E7 -> 0
A26: =SUM(Suppe!A9) -> 0.1 | B26: =Suppe!B9 -> LT | C26: =Suppe!C9 -> Sherry dazugiessen und flambieren
A27: =SUM(Suppe!A10) -> 0.4 | B27: =Suppe!B10 -> Lt | C27: =Suppe!C10 -> Bouillon | D27: =Suppe!E12 -> 0
A28: =SUM(Suppe!A11) -> 0 | B28: =Suppe!B11 -> 0 | C28: =Suppe!C11 -> mit Cayenne und Pfeffer | D28: =Suppe!E13 -> 0
A29: =SUM(Suppe!A12) -> 0 | B29: =Suppe!B12 -> 0 | C29: =Suppe!C12 -> Gewürze nach belieben und einige Tropfen Zitronensaft | D29: =Suppe!E14 -> 0
A30: =SUM(Suppe!A13) -> 0.06 | B30: =Suppe!B13 -> Lt | C30: =Suppe!C13 -> Rahm flüssig | D30: =Suppe!E15 -> 0
A31: =SUM(Suppe!A14) -> 0.06 | B31: =Suppe!B14 -> Lt | C31: =Suppe!C14 -> Rahm geschlagen | D31: =Suppe!E16 -> 0
A32: =SUM(Suppe!A15) -> 2 | B32: =Suppe!B15 -> St | C32: =Suppe!C15 -> Salatblätter in Streifen zum Garnieren | D32: =Suppe!E13 -> 0
A33: =SUM(Suppe!A16) -> 0 | B33: =Suppe!B16 -> 0 | C33: =Suppe!C16 -> 0 | D33: =Suppe!E14 -> 0
A34: =SUM(Suppe!A17) -> 0 | B34: =Suppe!B17 -> 0 | C34: =Suppe!C17 -> 0 | D34: =Suppe!E15 -> 0
A35: =SUM(Suppe!A18) -> 0 | B35: =Suppe!B17 -> 0 | C35: =Suppe!C17 -> 0 | D35: =Suppe!E16 -> 0
A36: =SUM(Suppe!A19) -> 0 | B36: =Suppe!B19 -> 0 | C36: =Suppe!C19 -> 0 | D36: =Suppe!D19 -> 0
A37: =SUM(Suppe!A20) -> 0 | B37: =Suppe!B20 -> 0 | C37: =Suppe!C20 -> 0 | D37: =Suppe!D20 -> 0
A38: =Hauptgang!A2 -> Saucisse aux Choux, Saucisson Vaudoise, Butefa | D38: Bemerkungen
A39: =SUM(Hauptgang!A4) -> 0.25 | B39: =Hauptgang!B4 -> Saucisse aux choux | D39: =Hauptgang!D4 -> 1 Stück ca. 450 - 500 Gramm
A40: =SUM(Hauptgang!A5) -> 0 | B40: =Hauptgang!B5 -> Die Kabiswurst vor dem Verzehr rund 45 Minuten lang ziehen lassen. Sie wird entweder ganz oder in zwei Hälften geschnitten, normalerweise mit dem berühmten «Papet vaudois» (Lauch-Kartoffel-Eintopf) serviert. Man schneidet sie auf und isst nur den Inhalt des Naturdarms. | C40: =Hauptgang!C5 -> 0
A41: =SUM(Hauptgang!A6) -> 0 | B41: =Hauptgang!B6 -> 0 | C41: =Hauptgang!C6 -> 0 | D41: =Hauptgang!D6 -> 0
A42: =SUM(Hauptgang!A7) -> 0 | B42: =Hauptgang!B7 -> 0 | C42: =Hauptgang!C7 -> 0 | D42: =Hauptgang!D7 -> 0
A43: =SUM(Hauptgang!A8) -> 0 | B43: =Hauptgang!B8 -> 0 | C43: =Hauptgang!C8 -> 0 | D43: =Hauptgang!D8 -> 0
A44: =SUM(Hauptgang!A9) -> 0.8 | B44: =Hauptgang!B9 -> Saucisson vaudois | D44: =Hauptgang!D9 -> 1 Stück ca. 250 - 300 Gramm
A45: =SUM(Hauptgang!A10) -> 0 | B45: =Hauptgang!B10 -> Die Saucisson vor dem Verzehr rund 45 Minuten lang ziehen lassen. Dann in Scheiben schneiden und mit dem Lauchgemüse zusammen geniessen | C45: =Hauptgang!C10 -> 0 | D45: =Hauptgang!D10 -> 0
A46: =SUM(Hauptgang!A11) -> 0 | B46: =Hauptgang!B11 -> 0 | C46: =Hauptgang!C11 -> 0 | D46: =Hauptgang!D11 -> 0
A47: =SUM(Hauptgang!A12) -> 0 | B47: =Hauptgang!B12 -> 0 | C47: =Hauptgang!C12 -> 0 | D47: =Hauptgang!D12 -> 0
A48: =SUM(Hauptgang!A13) -> 0.5 | B48: =Hauptgang!B13 -> Boutefa | C48: =Hauptgang!C13 -> 0 | D48: =Hauptgang!D13 -> 1 Stück ca. 1000 -1300 Gramm
A49: =SUM(Hauptgang!A14) -> 0 | B49: =Hauptgang!B14 -> Kochtipp: Im Wasser bei 75 °C ca. 70 - 80 Minuten erwärmen. Das Wasser darf nicht kochen. | C49: =Hauptgang!C14 -> 0 | D49: =Hauptgang!D14 -> 0
A50: =SUM(Hauptgang!A15) -> 0 | B50: =Hauptgang!B15 -> 0 | C50: =Hauptgang!C15 -> 0 | D50: =Hauptgang!D29 -> 0
A51: =Beilage2!A2 -> Papet vaudois
A52: =SUM(Beilage2!A4) -> 0.8 | B52: =Beilage2!B4 -> Stk | C52: =Beilage2!C4 -> Zwiebel | D52: =Beilage2!D4 -> 0
A53: =SUM(Beilage2!A5) -> 0.8 | B53: =Beilage2!B5 -> EL | C53: =Beilage2!C5 -> Butter | D53: =Beilage2!D5 -> 0
A54: =SUM(Beilage2!A6) -> 0.8 | B54: =Beilage2!B6 -> Stk | C54: =Beilage2!C6 -> Knoblauch | D54: =Beilage2!D6 -> 0
A55: =SUM(Beilage2!A7) -> 0.8 | B55: =Beilage2!B7 -> Kg | C55: =Beilage2!C7 -> Lauch weiss | D55: =Beilage2!D7 -> 0
A56: =SUM(Beilage2!A8) -> 0 | B56: =Beilage2!B8 -> 0 | C56: =Beilage2!C8 -> Salz, Muskat und Pfeffer | D56: =Beilage2!D8 -> 0
A57: =SUM(Beilage2!A9) -> 0.1 | B57: =Beilage2!B9 -> Lt | C57: =Beilage2!C9 -> Chasselas vaudois (Weisswein) | D57: =Beilage2!D9 -> 0
A58: =SUM(Beilage2!A10) -> 0.2 | B58: =Beilage2!B10 -> Lt | C58: =Beilage2!C10 -> Bouillon | D58: =Beilage2!D10 -> 0
A59: =SUM(Beilage2!A11) -> 0 | B59: =Beilage2!B11 -> 0 | C59: =Beilage2!C11 -> Lorbeerblatt | D59: =Beilage2!D11 -> 0
A60: =SUM(Beilage2!A12) -> 0.4 | B60: =Beilage2!B12 -> Kg | C60: =Beilage2!C12 -> Kartoffeln festkochende (Amandine) | D60: =Beilage2!D12 -> 0
A61: =SUM(Beilage2!A13) -> 0 | B61: =Beilage2!B13 -> 0 | C61: =Beilage2!C13 -> Salz | D61: =Beilage2!D13 -> 0
A62: =SUM(Beilage2!A14) -> 0 | B62: =Beilage2!B14 -> 0 | C62: =Beilage2!C14 -> Pfeffer | D62: =Beilage2!D14 -> 0
A63: =SUM(Beilage2!A15) -> 0 | B63: =Beilage2!B15 -> 0 | C63: =Beilage2!C15 -> Muskatnuss | D63: =Beilage2!D15 -> 0
A64: =SUM(Beilage2!A16) -> 0 | B64: =Beilage2!B16 -> 0 | C64: =Beilage2!C16 -> Rahm nach belieben | D64: =Beilage2!D16 -> 0
A65: =SUM(Beilage2!A17) -> 0 | B65: =Beilage2!B17 -> 0 | C65: =Beilage2!C17 -> 0 | D65: =Beilage2!D17 -> 0
A66: =SUM(Beilage2!A18) -> 1 | B66: =Beilage2!B18 -> Teil | C66: =Beilage2!C18 -> Butter flüssig
A67: =SUM(Beilage2!A19) -> 1 | B67: =Beilage2!B19 -> Teil | C67: =Beilage2!C19 -> Mehl | D67: =Beilage2!D19 -> 0
A68: =SUM(Beilage2!A20) -> 0 | B68: =Beilage2!B20 -> 0 | C68: =Beilage2!C20 -> 0 | D68: =Beilage2!D20 -> 0
A69: =Dessert!A2 -> Salée au sucre (Waadtländer Rahmkuchen) | D69: Bemerkungen
A70: =SUM(Dessert!A4) -> 0 | B70: =Dessert!B4 -> 0 | C70: =Dessert!C4 -> Kuchenboden | D70: =Dessert!D4 -> Zubereiten 30 Minuten
A71: =SUM(Dessert!A5) -> 0.02 | B71: =Dessert!B5 -> Kg | C71: =Dessert!C5 -> Hefe, zerkrümelt | D71: =Dessert!D5 -> Kochen / Backen 30 Minuten
A72: =SUM(Dessert!A6) -> 1 | B72: =Dessert!B6 -> TL | C72: =Dessert!C6 -> Zucker | D72: =Dessert!D6 -> Aufgehen lassen 1 Stunde
A73: =SUM(Dessert!A7) -> 0.15 | B73: =Dessert!B7 -> Lt | C73: =Dessert!C7 -> Milch | D73: =Dessert!D7 -> Auf dem Tisch in 2 Stunden
A74: =SUM(Dessert!A8) -> 0.025 | B74: =Dessert!B8 -> Kg | C74: =Dessert!C8 -> Butter weich | D74: =Dessert!D8 -> 0
A75: =SUM(Dessert!A9) -> 0.25 | B75: =Dessert!B9 -> Kg | C75: =Dessert!C9 -> Mehl | D75: =Dessert!D9 -> 0
A76: =SUM(Dessert!A10) -> 0.75 | B76: =Dessert!B10 -> TL | C76: =Dessert!C10 -> Salz | D76: =Dessert!D10 -> 0
A77: =SUM(Dessert!A11) -> 1 | B77: =Dessert!B11 -> Stk | C77: =Dessert!C11 -> Eigelb zum bestreichen, nach Belieben | D77: =Dessert!D11 -> 0
A78: =SUM(Dessert!A12) -> 0 | B78: =Dessert!B12 -> 0 | C78: =Dessert!C12 -> 0 | D78: =Dessert!D12 -> 0
A79: =SUM(Dessert!A13) -> 0 | B79: =Dessert!B13 -> 0 | C79: =Dessert!C13 -> Belag | D79: =Dessert!D13 -> Kuchenblech 28 cm Ø / für 8 Stück
A80: =SUM(Dessert!A14) -> 1 | B80: =Dessert!B14 -> EL | C80: =Dessert!C14 -> Mehl | D80: =Dessert!D14 -> 0
A81: =SUM(Dessert!A15) -> 4 | B81: =Dessert!B15 -> EL | C81: =Dessert!C15 -> Zucker | D81: =Dessert!D15 -> 0
A82: =SUM(Dessert!A16) -> 0.25 | B82: =Dessert!B16 -> Lt | C82: =Dessert!C16 -> Rahm | D82: =Dessert!D16 -> 0
A83: =SUM(Dessert!A17) -> 1 | B83: =Dessert!B17 -> TL | C83: =Dessert!C17 -> Maisstärke | D83: =Dessert!D17 -> 0
A84: =SUM(Dessert!A18) -> 0 | B84: =Dessert!B18 -> 0 | C84: =Dessert!C18 -> 0 | D84: =Dessert!D20 -> 0
A85: =SUM(Dessert!A19) -> 0 | B85: =Dessert!B19 -> 0 | C85: =Dessert!C19 -> 0
A86: =SUM(Dessert!A20) -> 0 | B86: =Dessert!B20 -> 0 | C86: =Dessert!C20 -> 0 | D86: =Dessert!D20 -> 0

Sheet Saucisson
D3: Saucisson Vaudoise je ca. 240 gr.
D5: Bestellung 5 Stück
D6: Pro Tisch 1 Stück
D7: Pro Person 1/4 Wurst
D10: Links 440 gr.
D11: Rechts 470
D12: Bestellung 8 Stück
D13: Pro Tisch je 2 Stück
D14: Pro Person halbe Wurst
D19: Ca. 1.1 Kg
D21: Bestellung | E21: 1 Stück | F21: zum Degustieren
D22: Wir aufgeteilt und kann auch kalt gegessen werden.
